bitfinex/quotes_ETHUSD_20250213
["timestamp","ask_amount","ask_price","bid_price","bid_amount"]
[1739459805470,0.0075,2652.8,2652.0,3.77065]
[1739459805770,3.77007,2652.5,2651.8,3.77096]
[1739459805979,0.05323745,2652.7,2652.5,3.76992]
[1739459806152,4.56029,2652.9,2652.3,3.7702]
[1739459806515,0.05323171,2652.8,2652.5,3.76998]
[1739459806656,0.05323171,2652.8,2652.5,3.76989]
[1739459806859,0.05323171,2652.8,2652.7,3.76974]
[1739459807054,0.8128,2654.2,2652.7,3.76974]
[1739459807255,0.8037,2653.7,2653.1,7.53813]
[1739459807468,1.2609,2653.7,2653.1,3.76906]
[1739459807672,0.4572,2653.7,2652.4,0.7747]
[1739459807876,0.85522165,2653.6,2653.3,3.76877]
[1739459808047,0.85522165,2653.6,2652.8,3.76954]
[1739459808381,0.7594,2653.9,2652.9,0.7894]
[1739459808586,1.3463,2654.3,2654.0,3.7678]
[1739459808788,0.55,2654.3,2654.2,3.76761]
[1739459808957,0.55,2654.3,2654.2,4.521146]
[1739459809358,0.55,2654.3,2654.0,3.76775]
[1739459809359,0.7632,2654.2,2653.2,5.976]
[1739459809575,0.0075,2653.7,2653.2,9.74499]
[1739459809775,0.7632,2653.9,2653.4,3.76874]
[1739459809978,0.7632,2653.9,2652.6,0.7608]
[1739459809979,0.7632,2653.9,2653.3,3.76878]
[1739459810163,0.7632,2653.9,2653.4,3.76864]
[1739459810372,3.77575,2653.8,2653.0,3.76925]
[1739459810576,3.76852,2653.6,2653.0,3.76925]
[1739459810958,3.76852,2653.6,2653.0,7.53844]
[1739459811198,3.76852,2653.6,2653.0,3.76921]
[1739459811404,0.0075,2653.7,2653.0,3.76921]
[1739459811699,0.453895,2653.8,2652.8,3.76948]
[1739459811700,0.015,2653.8,2652.8,3.76948]
[1739459811861,3.7689,2653.3,2652.7,3.76969]
[1739459812062,4.11061,2653.5,2652.8,3.76952]
[1739459812256,4.407001,2653.4,2652.8,3.76952]
[1739459812483,3.76906,2653.2,2652.6,3.76978]
[1739459812661,3.76906,2653.2,2652.5,3.76995]
[1739459812662,3.76918,2653.1,2652.5,3.76995]
[1739459812863,4.57325,2653.2,2652.5,3.76994]
[1739459813062,0.05152165,2653.0,2652.5,3.76994]
[1739459813405,0.05152165,2652.9,2652.7,3.7697]
[1739459813701,0.8042,2653.2,2652.7,3.7697]
[1739459814103,0.05149289,2653.1,2652.2,0.77278644]
[1739459814302,0.05149289,2653.1,2652.7,3.76973]
[1739459814463,0.05149289,2653.1,2652.8,3.76956]
[1739459815301,0.05149289,2653.1,2652.6,3.76984]
[1739459815470,0.05149289,2653.1,2653.0,3.76931]
[1739459815807,0.7696,2653.6,2653.2,3.76891]
[1739459816012,0.7696,2653.6,2652.6,0.7946]
[1739459816304,0.7696,2653.6,2653.3,3.76888]
[1739459816506,0.7696,2653.6,2653.3,3.76879]
[1739459816708,0.05175162,2653.5,2653.3,3.76879]
[1739459816906,0.05175162,2653.5,2653.4,3.76873]
[1739459817108,3.82043162,2653.5,2652.7,3.76968]
[1739459817404,0.0075,2653.4,2652.8,7.53904]
[1739459817604,0.05906765,2653.4,2652.8,3.7695]
[1739459817816,3.82784765,2653.4,2652.8,3.7695]
[1739459818019,2.33006765,2653.4,2652.5,3.76989]
[1739459818217,3.76947,2652.9,2652.3,3.7702]
[1739459818421,3.76961,2652.8,2652.3,3.7702]
[1739459818672,1.58913093,2652.8,2651.9,3.77082]
[1739459818807,3.77022,2652.4,2651.9,3.77082]
[1739459818984,3.77031,2652.3,2651.7,9.74706]
[1739459819182,0.05172293,2652.3,2651.9,3.77087]
[1739459819508,4.55312,2652.8,2651.7,5.976]
[1739459819709,0.05172293,2652.2,2652.1,3.77059]
[1739459820027,0.0075,2652.7,2651.9,3.77081]
[1739459820228,3.77003,2652.5,2651.7,9.74709]
[1739459820552,0.05172293,2652.6,2652.1,3.77051]
[1739459820679,0.05172293,2652.6,2652.1,3.7705]
[1739459820885,0.0075,2652.5,2651.9,3.77078]
[1739459821135,3.77062,2652.1,2651.7,5.976]
[1739459821425,6.32888293,2652.5,2651.9,3.77074]
[1739459821724,0.05172293,2652.4,2651.9,3.77074]
[1739459821895,0.05172293,2652.4,2651.7,9.74706]
[1739459822097,0.05172293,2652.4,2651.7,5.976]
[1739459822312,0.0075,2652.5,2652.2,3.77042]
[1739459822523,0.05172293,2652.4,2651.7,10.34473]
[1739459822684,0.7835,2652.8,2652.2,3.77044]
[1739459822886,0.7835,2652.8,2652.6,3.76979]
[1739459823199,9.31273312,2653.7,2652.6,3.76979]
[1739459823200,2.93e-06,2652.7,2652.6,4.52378]
[1739459823384,5.79e-06,2652.7,2652.6,5.28614195]
[1739459823585,0.7525,2652.9,2651.8,0.7943]
[1739459823816,0.7525,2652.9,2651.7,6.5736]
[1739459823817,0.0075,2652.6,2651.7,6.5736]
[1739459824027,3.7777,2652.4,2651.7,9.74706]
[1739459824209,4.54052,2652.3,2651.7,9.74706]
[1739459824525,0.0075,2652.2,2651.7,9.74712]
[1739459824695,0.05559472,2652.2,2651.7,5.976]
[1739459824897,0.05559472,2652.2,2651.8,3.77101]
[1739459825101,0.05559472,2652.2,2651.7,5.976]
[1739459825836,0.05559472,2652.2,2652.1,3.77059]
[1739459826131,0.7959,2652.8,2651.7,10.34467]
[1739459826329,0.7959,2652.8,2652.1,3.77056]
[1739459826634,0.7959,2653.3,2651.8,3.0]
[1739459826814,0.7599,2653.6,2653.2,3.76903]
[1739459827005,0.7599,2653.6,2653.3,3.76878]
[1739459827188,0.75134167,2654.0,2653.3,3.76878]
[1739459827189,0.8061,2654.1,2653.8,3.76807]
[1739459827389,0.8061,2654.1,2653.4,3.76874]
[1739459827390,0.8061,2654.1,2654.0,3.76789]
[1739459827595,0.84138179,2654.2,2654.1,3.76775]
[1739459828330,8.76106312,2654.9,2654.1,3.76775]
[1739459828331,3.7669,2654.7,2654.1,3.76775]
[1739459828491,0.83480688,2654.8,2654.2,3.76761]
[1739459828690,0.8061,2654.8,2654.0,3.76776]
[1739459828887,0.8061,2654.8,2654.2,3.76761]
[1739459829430,3.76718,2654.5,2653.8,3.76816]
[1739459829602,4.31751,2654.3,2653.7,3.7683]
[1739459829803,4.749208,2654.3,2653.7,3.7683]
[1739459830003,0.981718,2654.3,2653.8,3.76807]
[1739459830332,0.55,2654.3,2653.8,3.76815]
[1739459830805,0.04691626,2654.2,2653.8,3.76815]
[1739459831009,0.55,2654.3,2654.0,3.76784]
[1739459831210,0.04691626,2654.1,2654.0,3.76784]
[1739459831409,0.55,2654.3,2653.9,3.76792]
[1739459831616,0.04681283,2654.1,2653.7,3.7683]
[1739459831825,0.55,2654.3,2653.5,3.7686]
[1739459832130,0.55,2654.3,2654.2,3.76761]
[1739459832304,0.55,2654.3,2654.2,4.54211]
[1739459833339,1e-05,2654.3,2654.2,7.57978009]
[1739459833530,1e-05,2654.3,2654.2,7.54211]
[1739459833866,1e-05,2654.3,2654.2,9.12466254]
[1739459834208,1e-05,2654.3,2654.2,3.76761]
[1739459834461,1e-05,2654.3,2654.1,3.76766]
[1739459834669,1e-05,2654.3,2654.2,3.76761]
[1739459835933,1e-05,2654.3,2654.2,4.55661]
[1739459836204,1e-05,2654.3,2653.9,3.76793]
[1739459836463,0.00751,2654.3,2653.9,3.76802]
[1739459836667,0.811,2654.2,2653.2,0.76076875]
[1739459836974,0.015,2654.0,2652.8,0.7904]
[1739459837101,0.811,2654.2,2653.3,3.76885]
[1739459837301,0.811,2654.2,2653.7,3.76822]
[1739459837547,0.015,2653.9,2653.5,3.76854]
[1739459837872,0.015,2653.7,2653.2,3.769]
[1739459838025,0.7521,2653.6,2653.0,3.76923]
[1739459838210,0.0075,2653.5,2652.9,3.76942]
[1739459838579,0.0075,2653.5,2653.0,3.76923]
[1739459839095,0.015,2653.5,2652.4,0.82]
[1739459839226,0.03620688,2653.5,2652.0,0.8129]
[1739459839587,0.7521,2653.6,2653.2,3.76902]
[1739459839870,0.7521,2654.2,2653.7,3.76823]
[1739459840213,0.0075,2654.1,2653.7,3.76823]
[1739459841266,0.7521,2654.2,2653.1,1.55195404]
[1739459841467,0.7521,2654.2,2653.9,3.76801]
[1739459842282,0.0075,2654.1,2653.6,3.76846]
[1739459842483,0.04710025,2654.1,2654.0,3.76789]
[1739459842843,1e-05,2654.3,2654.1,3.76771]
[1739459843627,1e-05,2654.3,2654.1,3.76767]
[1739459843840,1e-05,2654.3,2654.2,3.76761]
[1739459846083,0.00751,2654.3,2654.0,3.76776]
[1739459846471,1e-05,2654.3,2654.1,3.76766]
[1739459846642,1e-05,2654.3,2654.0,3.76776]
[1739459846835,1e-05,2654.3,2653.6,3.7684]
[1739459847156,1e-05,2654.3,2654.0,3.76788]
[1739459847361,1e-05,2654.3,2653.6,0.37684]
[1739459847540,1e-05,2654.3,2654.2,3.76761]
[1739459847996,1e-05,2654.3,2654.2,3.80528002]
[1739459848177,1e-05,2654.3,2654.2,3.76761]
[1739459849811,1e-05,2654.3,2654.2,3.80527611]
[1739459850317,1e-05,2654.3,2654.2,3.76761]
[1739459850607,1e-05,2654.3,2654.2,4.602595]
[1739459851150,1e-05,2654.3,2654.2,3.76761]
[1739459851350,0.04713323,2654.3,2653.8,3.76817]
[1739459851545,0.04713323,2654.3,2653.9,3.76791]
[1739459851816,0.04713323,2654.3,2653.4,3.76869]
[1739459852112,0.04713323,2654.3,2654.2,3.76761]
[1739459852254,0.04713323,2654.3,2654.1,3.76761]
[1739459852973,1e-05,2654.3,2654.2,3.76761]
[1739459854528,1e-05,2654.3,2654.2,3.80527994]
[1739459855015,1e-05,2654.3,2654.2,3.80527312]
[1739459857063,0.1501,2655.7,2654.3,0.8314]
[1739459857401,0.1501,2655.7,2655.6,3.76562]
[1739459858914,0.1501,2655.7,2655.5,3.76575]
[1739459859329,0.1501,2655.7,2655.6,3.76562]
[1739459859817,0.1501,2655.7,2655.5,3.76575]
[1739459860022,0.1501,2655.7,2654.8,3.7667]
[1739459860388,0.1501,2655.7,2655.6,3.76562]
[1739459862100,0.1501,2655.7,2654.9,4.14322]
[1739459862101,0.1501,2655.7,2655.1,3.76633]
[1739459862269,0.1501,2655.7,2655.6,3.76562]
[1739459863444,0.19942837,2655.7,2655.6,3.76562]
[1739459864360,0.1501,2655.7,2655.6,3.76562]
[1739459864557,1e-05,2655.7,2655.6,4.55640915]
[1739459864762,1e-05,2656.4,2656.3,3.76463]
[1739459865167,1e-05,2656.4,2656.3,4.58223]
[1739459865342,1e-05,2656.4,2656.3,4.61986916]
[1739459865917,1e-05,2656.4,2656.3,5.3738736]
[1739459866134,1e-05,2656.4,2656.3,6.74953511]
[1739459866439,1e-05,2656.4,2656.3,9.78716856]
[1739459866633,1e-05,2656.4,2656.3,9.74953511]
[1739459866962,1e-05,2656.4,2656.3,6.74953511]
[1739459867668,1e-05,2656.4,2656.3,6.78717163]
[1739459868356,1e-05,2656.4,2656.3,9.78717163]
[1739459868664,1e-05,2656.4,2656.3,9.74953511]
[1739459869042,0.59118696,2657.2,2657.1,3.7635]
[1739459869366,6.96e-06,2657.2,2657.1,4.13985]
[1739459869663,0.1501,2658.4,2658.1,3.76202]
[1739459869865,0.1501,2658.4,2657.6,3.76268]
[1739459870067,3.91176,2658.4,2657.8,3.76249]
[1739459870227,3.76954,2658.2,2657.6,3.76272]
[1739459870423,1.210576,2658.3,2657.6,3.76272]
[1739459870624,3.76194,2658.2,2657.6,3.76272]
[1739459870851,3.76194,2658.2,2657.6,3.76271]
[1739459871038,0.1501,2658.4,2658.1,3.76198]
[1739459871234,0.1501,2658.4,2658.2,3.76188]
[1739459871451,0.1501,2658.4,2658.0,3.7621]
[1739459872376,0.7769,2658.2,2657.1,0.37635]
[1739459872697,0.7769,2658.2,2657.0,0.8062]
[1739459872698,0.7769,2658.2,2657.8,3.7625]
[1739459872854,0.04876572,2658.1,2657.9,3.76233]
[1739459873201,0.04876572,2658.1,2657.9,3.76236]
[1739459873535,0.04876572,2658.1,2658.0,3.76222]
[1739459873848,0.7769,2658.2,2658.1,3.76208]
[1739459874035,0.04877719,2658.1,2658.0,3.76222]
[1739459874236,0.1501,2658.4,2658.3,3.7618]
[1739459875310,0.19883705,2658.4,2658.3,3.7618]
[1739459875688,0.19883705,2658.4,2658.2,3.76193]
[1739459875891,0.19883705,2658.4,2658.0,3.76214]
[1739459875892,0.19883705,2658.4,2658.0,3.76215]
[1739459876223,3.96058705,2658.4,2657.8,3.76239]
[1739459876387,0.19883705,2658.4,2657.5,5.30726539]
[1739459876718,0.19883705,2658.4,2658.2,3.7619]
[1739459876923,0.19883705,2658.4,2657.9,3.76232]
[1739459877087,3.76184,2658.3,2657.8,3.76242]
[1739459877266,0.02870688,2658.2,2657.5,0.74870539]
[1739459877610,0.02870688,2658.2,2657.4,3.76296]
[1739459877611,3.76237,2657.9,2657.4,3.76299]
[1739459877811,0.8327,2658.1,2656.7,0.8041]
[1739459878158,0.7691,2657.7,2657.3,3.76308]
[1739459878315,4.53177,2657.7,2657.1,3.7634]
[1739459878525,3.76279,2657.6,2656.9,3.7637]
[1739459878731,3.76279,2657.6,2656.7,3.76397]
[1739459879041,0.0489779,2657.5,2656.6,3.7642]
[1739459879169,3.76329,2657.3,2656.5,0.74900668]
[1739459879378,3.76345,2657.2,2656.5,0.74900668]
[1739459879613,0.0489779,2657.1,2656.7,3.76405]
[1739459880113,3.76353,2657.1,2656.3,9.73057]
[1739459880296,0.8263,2656.9,2656.4,0.03763876]
[1739459880503,5.05406035,2656.9,2656.3,9.73057]
[1739459880700,5.05408035,2656.9,2656.3,9.73057]
[1739459880904,0.04987347,2656.8,2656.3,9.73054]
[1739459881101,3.76429,2656.6,2656.3,5.966]
[1739459881322,3.7644,2656.5,2656.3,5.966]
[1739459881471,3.7644,2656.5,2655.7,3.76539]
[1739459881472,3.76467,2656.3,2655.7,3.76539]
[1739459881674,0.8263,2656.2,2655.6,3.76557]
[1739459881899,0.8263,2656.2,2655.4,3.76588]
[1739459882115,0.04987347,2656.1,2655.2,0.76729194]
[1739459882295,3.81479347,2656.1,2655.5,3.76564]
[1739459882500,0.84058035,2656.1,2655.5,3.76568]
[1739459882805,3.76496,2656.1,2655.3,3.76605]
[1739459883006,0.04987347,2656.0,2655.5,3.76574]
[1739459883181,0.04987347,2656.0,2655.0,3.76647]
[1739459883379,3.76577,2655.5,2654.9,3.76654]
[1739459883576,3.76611,2655.3,2654.8,0.19050435]
[1739459883887,3.76629,2655.2,2654.7,5.966]
[1739459884073,3.76639,2655.1,2654.7,5.966]
[1739459884281,0.04987347,2655.2,2654.7,6.00366186]
[1739459884525,0.7551,2656.1,2655.5,3.76576]
[1739459884817,3.76523,2655.9,2655.3,3.76599]
[1739459884990,0.02870688,2655.8,2655.1,0.7901]
[1739459885188,4.52005,2656.1,2655.4,3.76582]
[1739459885525,0.7551,2656.1,2655.5,3.76574]
[1739459885677,1.207099,2656.1,2655.4,3.76582]
[1739459885876,3.76517,2656.0,2655.4,3.7659]
[1739459886120,3.76517,2656.0,2655.2,3.76607]
[1739459886302,3.76535,2655.8,2655.0,3.76641]
[1739459886493,0.7551,2655.5,2655.0,7.5328]
[1739459886689,0.7551,2655.5,2655.2,3.76611]
[1739459887204,0.7551,2656.0,2655.6,3.76552]
[1739459887430,9.55e-06,2656.0,2655.8,3.76531]
[1739459887582,9.55e-06,2656.0,2655.9,3.80284693]
[1739459887940,0.1,2657.9,2655.9,3.80284693]
[1739459887941,3.76182,2658.3,2657.5,3.76285]
[1739459888081,0.334,2657.9,2656.1,4.99437312]
[1739459888437,0.4841,2658.4,2657.9,3.76228]
[1739459888651,4.24581,2658.4,2657.6,3.76276]
[1739459888780,4.24581,2658.4,2657.6,3.7627]
[1739459888977,0.0075,2658.3,2657.8,3.76238]
[1739459889178,7.53123,2658.3,2657.6,3.76275]
[1739459889498,0.0075,2657.9,2657.2,3.76328]
[1739459889671,0.0075,2657.6,2657.0,3.76358]
[1739459889806,0.015,2657.6,2656.2,1.28353731]
[1739459890009,3.7631,2657.4,2656.8,3.76383]
[1739459890372,3.7631,2657.4,2656.2,0.7741]
[1739459890373,3.7704,2657.6,2657.0,3.76362]
[1739459890529,0.0075,2657.6,2657.1,3.76345]
[1739459890742,3.76228,2658.0,2656.5,3.76435]
[1739459890940,0.7623,2657.7,2657.4,3.76298]
[1739459891141,0.7623,2657.7,2657.3,3.76319]
[1739459891382,0.7623,2657.7,2657.5,3.76292]
[1739459891684,0.7623,2657.7,2656.4,0.03763072]
[1739459891995,3.76238,2657.9,2657.2,3.76327]
[1739459892188,3.76238,2657.9,2656.8,3.76384]
[1739459892189,0.7723,2658.1,2657.1,3.7635]
[1739459892485,3.76982,2658.0,2657.3,3.76317]
[1739459892687,3.76253,2657.8,2657.3,3.76317]
[1739459892839,0.376253,2657.7,2657.3,3.76317]
[1739459893170,0.376253,2657.7,2657.1,3.76346]
[1739459893322,3.76982,2658.0,2657.1,3.76346]
[1739459893323,0.0075,2657.9,2657.1,3.76346]
[1739459893528,3.7626,2657.8,2656.9,3.76372]
[1739459893888,3.7626,2657.8,2657.1,3.76341]
[1739459894047,0.7665,2657.7,2657.5,3.76283]
[1739459894396,0.7665,2658.2,2657.9,3.76226]
[1739459894523,0.7665,2658.2,2657.2,0.03762411]
[1739459894722,0.7665,2658.2,2658.0,3.76213]
[1739459895026,0.7665,2658.2,2658.1,3.76208]
[1739459895226,0.7665,2658.2,2658.0,3.76213]
[1739459895428,8.59e-06,2658.2,2658.1,3.76208]
[1739459895668,0.04028681,2658.2,2658.1,5.34147225]
[1739459895850,1e-05,2658.4,2658.3,3.7618]
[1739459896030,1e-05,2658.4,2658.3,9.61697378]
[1739459896229,1e-05,2658.4,2658.3,9.57937312]
[1739459896584,1e-05,2658.4,2658.3,12.57937312]
[1739459896805,1e-05,2658.4,2658.3,14.6626048]
[1739459897441,1e-05,2658.4,2658.3,6.66823168]
[1739459897566,1e-05,2658.4,2658.3,4.585]
[1739459898631,1e-05,2658.4,2658.1,3.76199]
[1739459898836,1e-05,2658.4,2657.9,3.76227]
[1739459898969,3.75808858,2659.2,2657.8,0.84551664]
[1739459899169,0.04227284,2659.1,2658.5,3.76151]
[1739459899375,0.04227284,2659.1,2658.6,3.76134]
[1739459899688,0.04227284,2659.1,2658.7,3.76122]
[1739459899914,0.04227284,2659.1,2658.5,3.76146]
[1739459900069,0.04227284,2659.1,2658.3,3.76173]
[1739459900070,0.46284028,2659.1,2658.3,3.76173]
[1739459900272,0.015,2658.9,2658.0,3.7621]
[1739459900599,0.0422958,2658.8,2657.6,0.74521947]
[1739459900785,3.8034958,2658.8,2658.1,3.76201]
[1739459900985,0.04078524,2658.7,2657.6,0.78283384]
[1739459901192,0.339,2659.1,2658.4,3.76156]
[1739459901384,0.339,2659.1,2658.0,3.76219]
[1739459901717,0.7573,2658.4,2657.8,3.76243]
[1739459901913,1.209186,2658.4,2657.9,3.76227]
[1739459902121,0.7573,2658.4,2657.9,3.76225]
[1739459902272,0.7573,2658.4,2657.4,0.8104]
[1739459902273,0.04078524,2658.3,2657.6,3.7627]
[1739459902474,0.04078524,2658.3,2657.9,3.76231]
[1739459902874,0.04078524,2658.3,2657.9,3.76226]
[1739459903113,4.54579,2658.7,2658.1,3.76198]
[1739459903324,0.04078524,2658.2,2658.1,3.76198]
[1739459903515,0.7845,2658.7,2658.1,4.5144]
[1739459903688,4.54577,2658.7,2658.1,3.76198]
[1739459903884,0.7845,2658.7,2658.3,3.76178]
[1739459904207,0.04078524,2658.6,2658.3,3.76178]
[1739459904561,0.04078524,2658.6,2658.5,3.76151]
[1739459904820,0.78480688,2659.1,2657.9,0.7866]
[1739459904988,0.3465,2659.6,2658.7,3.76114]
[1739459904989,3.76029,2659.4,2658.7,3.76114]
[1739459905188,0.451639,2659.3,2658.6,3.76123]
[1739459905397,0.04078524,2659.2,2658.6,3.76123]
[1739459905597,0.04078524,2659.2,2658.7,3.7611]
[1739459905790,0.04078524,2659.2,2658.5,3.76139]
[1739459906000,3.7609,2659.0,2658.3,3.76167]
[1739459906218,0.41695558,2658.9,2658.0,3.76209]
[1739459906499,3.76124,2658.7,2658.2,3.76186]
[1739459906684,3.80181558,2658.9,2658.2,3.76186]
[1739459906903,0.04120995,2658.6,2658.2,3.76192]
[1739459907101,2.2785,2659.1,2658.2,3.76185]
[1739459907422,3.76103,2658.9,2657.8,5.964]
[1739459907718,4.517293,2658.9,2657.9,0.5964]
[1739459907919,3.80238995,2658.8,2658.1,3.76197]
[1739459908124,7.56356995,2658.8,2658.1,3.76197]
[1739459908340,3.80238995,2658.8,2658.1,3.76197]
[1739459908539,0.8235,2658.6,2658.2,3.76186]
[1739459908724,0.8235,2658.6,2657.8,9.72648]
[1739459908923,3.7616,2658.5,2658.0,3.76222]
[1739459909222,0.04120995,2658.4,2658.1,3.76201]
[1739459909422,0.8235,2658.6,2658.1,3.762]
[1739459909743,0.04120995,2658.5,2658.1,3.762]
[1739459909924,0.04120995,2658.5,2657.8,5.964]
[1739459910127,0.04120995,2658.5,2658.3,7.52344]
[1739459910300,0.8235,2658.6,2657.6,0.7866]
[1739459910504,0.04103778,2658.4,2658.0,3.76213]
[1739459910713,3.76155,2658.5,2658.0,3.76213]
[1739459911000,3.76217,2658.1,2657.5,3.76289]
[1739459911241,0.0410263,2658.0,2657.8,3.7625]
[1739459911442,0.0410263,2658.0,2657.9,3.76236]
[1739459911648,3.76915,2658.5,2657.9,3.76236]
[1739459911803,0.04092872,2658.0,2657.9,3.76236]
[1739459911999,0.8293,2658.1,2657.9,3.76236]
[1739459912200,0.04092872,2658.0,2657.9,3.76228]
[1739459912531,0.04092872,2658.0,2657.3,3.76321]
[1739459912920,0.04092872,2658.0,2657.8,3.76239]
[1739459913245,0.04092872,2657.9,2657.2,0.76673442]
[1739459913457,0.0075,2657.7,2657.2,0.76673442]
[1739459913749,0.0075,2657.3,2655.9,0.7959]
[1739459913906,0.7937,2656.6,2655.8,3.76534]
[1739459914102,0.7937,2656.6,2655.6,1.172452]
[1739459914304,0.7937,2656.6,2655.7,3.76548]
[1739459914502,0.7937,2656.6,2656.1,3.76481]
[1739459914816,0.7981,2657.7,2657.6,3.76279]
[1739459915015,0.7981,2658.6,2658.1,3.76198]
[1739459915330,0.7981,2658.6,2658.1,3.76206]
[1739459915536,3.76183,2658.3,2657.7,3.76262]
[1739459915853,0.8189,2658.2,2656.9,9.72874]
[1739459916020,3.76224,2658.0,2657.4,3.76303]
[1739459916227,3.76224,2658.0,2657.5,3.76292]
[1739459916422,3.76224,2658.0,2657.3,3.76312]
[1739459916607,3.76241,2657.9,2657.3,3.76312]
[1739459916806,3.76224,2658.0,2657.3,3.7631]
[1739459917050,2.2785,2657.9,2657.1,3.76342]
[1739459917215,3.76308,2657.4,2656.9,5.965]
[1739459917419,0.04034319,2657.3,2656.9,5.965]
[1739459917629,0.8206,2657.2,2656.9,5.965]
[1739459918438,0.04034319,2657.1,2656.9,5.965]
[1739459919304,0.0075,2657.0,2656.9,5.965]
[1739459919651,3.76464,2656.3,2655.7,3.7654]
[1739459919852,0.8046,2656.4,2655.9,3.76519]
[1739459920051,0.8046,2656.4,2655.8,0.4141952]
[1739459920052,0.8046,2656.4,2656.3,3.76463]
[1739459920354,0.04034319,2656.3,2656.2,3.76477]
[1739459920658,0.0075,2657.0,2656.5,3.76424]
[1739459920949,2.2785,2656.7,2656.1,3.76482]
[1739459921151,3.76449,2656.4,2655.8,0.4141952]
[1739459921358,3.76473,2656.3,2655.8,0.4141952]
[1739459921509,3.76473,2656.3,2655.5,3.76567]
[1739459921510,0.0075,2656.2,2655.5,3.76567]
[1739459921708,0.8158,2656.0,2655.5,3.76567]
[1739459921908,4.58087,2656.0,2655.5,3.76567]
[1739459922151,3.76536,2655.8,2655.1,3.76631]
[1739459922448,3.76557,2655.7,2654.7,0.7596]
[1739459922651,3.76552,2655.7,2654.9,4.439]
[1739459922861,3.80323902,2655.7,2655.1,3.76623]
[1739459923529,3.76569,2655.6,2655.0,3.76639]
[1739459923850,0.03737973,2655.5,2655.2,3.76614]
[1739459924009,0.03737973,2655.5,2655.2,3.76608]
[1739459924208,0.337,2655.8,2655.2,0.376608]
[1739459924455,0.337,2655.8,2654.9,0.67246]
[1739459924624,0.03737973,2655.7,2655.6,3.76562]
[1739459924953,0.8158,2656.0,2655.5,3.76573]
[1739459925343,0.03737973,2655.9,2655.2,3.76611]
[1739459925660,0.03737973,2655.9,2655.4,3.7659]
[1739459925807,0.03737973,2655.9,2655.4,3.76582]
[1739459926009,0.03737973,2655.9,2655.8,3.76534]
[1739459926217,0.8013,2656.4,2656.2,3.76466]
[1739459926517,0.8013,2656.4,2655.5,3.76572]
[1739459926518,0.03737973,2656.3,2655.9,3.76519]
[1739459926728,3.76535,2655.8,2655.2,4.142721]
[1739459927060,3.76535,2655.8,2655.0,3.76639]
[1739459927061,0.7971,2655.7,2655.0,3.76639]
[1739459927255,3.76592,2655.4,2654.9,3.7666]
[1739459927455,3.77317,2655.6,2655.0,3.76647]
[1739459927613,3.76592,2655.4,2654.8,9.73171]
[1739459927813,0.03737973,2655.3,2654.8,9.73171]
[1739459928059,3.76585,2655.5,2654.9,3.76658]
[1739459928277,0.03737973,2655.2,2654.8,10.704881]
[1739459928575,3.76592,2655.4,2654.8,9.73171]
[1739459928855,3.76592,2655.4,2654.8,13.49833]
[1739459929063,0.03597723,2655.3,2654.8,9.73165]
[1739459929359,0.03597723,2655.3,2654.9,3.76654]
[1739459929529,7.53171,2655.5,2654.9,3.76654]
[1739459929733,4.55972,2655.1,2654.8,5.965]
[1739459929936,0.7933,2655.1,2654.8,5.965]
[1739459930125,0.03597723,2655.0,2654.8,5.965]
[1739459930463,0.03597723,2655.0,2654.9,3.76662]
[1739459930635,0.03597723,2655.0,2654.1,3.76772]
[1739459930636,0.03597723,2655.0,2654.4,3.76731]
[1739459930864,3.76676,2654.8,2654.2,3.76753]
[1739459931148,3.76662,2654.9,2654.2,3.76751]
[1739459931355,0.03597723,2654.7,2654.3,3.76737]
[1739459931561,3.76655,2655.0,2654.3,3.76737]
[1739459931562,3.76655,2655.0,2654.3,3.76736]
[1739459931737,0.03597723,2654.6,2654.5,3.76717]
[1739459931918,0.7933,2655.1,2654.7,3.76688]
[1739459932373,0.03597723,2655.0,2654.7,3.76688]
[1739459933026,0.03597723,2655.0,2654.9,3.76662]
[1739459933220,0.03597723,2655.0,2654.3,0.376736]
[1739459933415,0.7933,2655.1,2654.5,3.76718]
[1739459933616,4.55971,2655.1,2654.5,3.76708]
[1739459933924,0.03597723,2655.0,2654.6,3.767]
[1739459934124,3.76662,2654.9,2654.4,3.76719]
[1739459934338,0.03597723,2655.0,2653.9,0.8318]
[1739459934720,0.7933,2655.1,2654.8,3.76676]
[1739459934721,0.03541334,2654.9,2654.8,3.76676]
[1739459934948,0.03541334,2654.9,2654.7,3.76678]
[1739459935228,0.7933,2655.1,2654.7,3.76678]
[1739459935396,0.03540758,2654.8,2654.7,3.76678]
[1739459935594,0.7933,2655.1,2654.8,3.76673]
[1739459935923,0.7856,2655.5,2655.4,3.76591]
[1739459936130,0.7856,2655.9,2655.4,3.76577]
[1739459936348,0.7856,2655.9,2654.9,3.76662]
[1739459936632,0.7856,2655.9,2655.7,3.7654]
[1739459936784,0.7856,2655.9,2655.8,3.76534]
[1739459936986,0.8227,2656.3,2655.8,3.76534]
[1739459937213,0.8227,2656.3,2655.2,3.76619]
[1739459937412,0.8227,2656.3,2656.1,3.76491]
[1739459937596,4.58739,2656.3,2655.7,3.76536]
[1739459937794,4.58739,2656.3,2655.5,3.76568]
[1739459937795,0.02870688,2656.2,2655.5,3.76568]
[1739459938022,1.65789,2656.3,2655.1,4.5974]
[1739459938023,4.58734,2656.3,2655.8,3.76531]
[1739459938233,4.58734,2656.3,2655.9,3.76512]
[1739459938234,0.8227,2656.3,2655.9,3.76512]
[1739459938399,0.8227,2656.3,2656.0,3.76502]
[1739459938604,0.8227,2656.3,2656.2,3.76477]
[1739459938801,0.8074,2656.6,2655.3,3.76601]
[1739459939131,0.8074,2656.6,2656.3,3.76462]